Cogmind - Beta 14 @@@ ROGUE MODE // 2024.09.21 @ 14:30:59 Player: Waste Result: Destroyed by 8R-AWN with 8R-AWN's Boregun Performance ------------- Evolutions (0) 0 Regions Visited (3) 600 Robots Destroyed (35) 175 Value Destroyed (754) 754 Prototype IDs (28) 560 Alien Tech Used (0) 0 Bonus (370) 370 TOTAL SCORE: 2459 Bonus ------- Follower Combat Kills 139 Aligned with FarCom 300 Friendly Fire -69 Cogmind --------- Core Integrity 0/250 Matter 217/300 Energy 250/250 System Corruption 0% Temperature Cool (0) Movement Core (1500) Ox29 Location -10/Exiles Parts ------- > --- POWER (1) -------- Ion Engine > --- PROPULSION (2) --- (None) > --- UTILITY (2) ------ Huge Storage Unit Salvage Targeting Computer > --- WEAPON (2) ------- Assault Rifle Assault Rifle > --- INVENTORY (25) --- Ion Engine Ion Engine Light Ion Engine Light Treads Light Treads Light Treads Light Treads Light Treads Potential Leg Potential Leg Cooling System Huge Storage Unit High-capacity Matter Pod (136) Medium Laser Small Laser Light Assault Rifle Grenade Launcher Rocket Launcher Makeshift Hammer Signal Generator Peak State ------------ > --- POWER ------------ Ion Engine > --- PROPULSION ------- Light Treads Compact Wheel > --- UTILITY ---------- Cooling System Huge Storage Unit > --- WEAPON ----------- Assault Rifle Assault Rifle > --- INVENTORY -------- Ion Engine Ion Engine Light Ion Engine Light Treads Light Treads Light Treads Light Treads Light Treads Potential Leg Potential Leg Huge Storage Unit High-capacity Matter Pod Salvage Targeting Computer Medium Laser Small Laser Assault Rifle Assault Rifle Light Assault Rifle Grenade Launcher Rocket Launcher Makeshift Hammer Signal Generator Deploy-a-Sentry Deploy-a-Sentry Deploy-a-Sentry [Rating: 15] Favorites ----------- Power Ion Engine Engine Ion Engine Power Core Light Nuclear Core Propulsion Aluminum Leg Treads Light Treads Leg Aluminum Leg Wheel Compact Wheel Utility Cooling System Device Cooling System Storage Huge Storage Unit Processor Salvage Targeting Computer Weapon Assault Rifle Energy Gun Small Laser Energy Cannon Beam Cannon Ballistic Gun Assault Rifle Launcher Rocket Launcher Build | -11 -10 -10 -10 ------- Run | Yrd Mat Min Exi Slots Evolved . | . . . . Power . | . . . . Propulsion . | . . . . Utility . | . . . . Weapon . | . . . . Parts Attached 19 | . 9 7 3 Power 3 | . 2 1 . Engine 2 | . 1 1 . Core 1 | . 1 . . Reactor . | . . . . Propulsion 3 | . 1 2 . Treads 1 | . . 1 . Leg . | . . . . Wheel 2 | . 1 1 . Hover . | . . . . Flight . | . . . . Utility 4 | . 3 . 1 Device 2 | . 2 . . Storage 1 | . 1 . . Processor 1 | . . . 1 Hackware . | . . . . Protection . | . . . . Artifact . | . . . . Weapon 9 | . 3 4 2 Energy Gun 1 | . 1 . . Energy Cannon 1 | . 1 . . Ballistic Gun 6 | . 1 3 2 Ballistic Cannon . | . . . . Launcher 1 | . . 1 . Special Weapon . | . . . . Impact Weapon . | . . . . Slashing Weapon . | . . . . Piercing Weapon . | . . . . Special Melee Weapon . | . . . . Unidentified Prototypes . | . . . . Parts Lost 10 | . 2 4 4 Power 2 | . 1 1 . Propulsion 4 | . 1 1 2 Utility . | . . . . Weapon 4 | . . 2 2 Highest Loss Streak 4 | . 2 2 4 To Critical Strikes 4 | . . . 4 Average Slot Usage (%) 98 | . 97 99 98 Engine 8 | . 4 13 14 Core 4 | . 8 . . Treads 4 | . . 8 14 Leg 13 | . 23 5 . Wheel 9 | . 4 13 13 Device 13 | . 13 14 12 Storage 14 | . 14 14 14 Energy Gun 6 | . 12 . . Energy Cannon 5 | . 11 . . Ballistic Gun 15 | . 3 27 27 Peak Build Rating 15 | 6 11 11 15 Average Rating 10 | 6 9 9 12 On Entrance 8 | 6 6 10 10 Naked Turns . | . . . . Heaviest Build 92 | 13 92 91 91 Greatest Support 20 | 20 20 16 16 Greatest Overweight (x) 9 | . 9 9 5 Average Overweight (x) 5 | . 4 6 5 Largest Inventory Capacity 25 | 8 25 25 25 Average Capacity 23 | 8 22 25 25 Most Carried 25 | 6 19 20 25 Average Carried 15 | 6 11 18 21 Final Capacity 25 | 8 25 25 25 Final Carried 20 | 6 19 20 20 Class Distribution -------------------- 100% | Mutant Dominant Class ---------------- Mutant | -10/Materials Mutant | -10/Mines Mutant | -10/Exiles Resources | -11 -10 -10 -10 ----------- Run | Yrd Mat Min Exi Matter Collected 719 | 200 117 397 5 Remotely . | . . . . Salvage Created 1143 | . 834 309 . Parts 58 | . 35 23 . Haulers Intercepted 2 | . 2 . . Recyclers Shooed 1 | . 1 . . Parts Field Recycled . | . . . . Retrieved Matter . | . . . . Parts Self-Destructed . | . . . . Prevented . | . . . . Kills | -11 -10 -10 -10 ------- Run | Yrd Mat Min Exi Combat Hostiles Destroyed 28 | . 14 14 . Guns 18 | . 7 11 . Cannons 7 | . 7 . . AOE 3 | . . 3 . Classes Destroyed 7 | . 6 1 . Worker 1 | . . 1 . Builder 1 | . 1 . . Hauler 2 | . 2 . . Recycler 2 | . 2 . . Watcher 1 | . 1 . . Swarmer 12 | . 3 9 . Grunt 16 | . 11 5 . Best Kill Streak 4 | . 4 4 . Combat Bots Only 3 | . 2 3 . Max Kills in Single Turn 1 | . 1 1 . Gunslinging . | . . . . Exploded 1 | . . 1 . Melee . | . . . . Uniques/NPCs Destroyed . | . . . . Combat | -11 -10 -10 -10 -------- Run | Yrd Mat Min Exi Hostile Shots Fired 153 | . 65 61 27 Missed 32 | . 14 16 2 Damage Taken 1476 | . 587 428 461 Core 259 | . 93 51 115 Absorbed by Shields . | . . . . Core Remaining (%) 100 | 100 . . . Volleys Fired 109 | . 62 34 13 Largest 2 | . 2 2 2 Hottest 100 | . 100 80 40 Shots Fired 208 | . 123 59 26 Gun 156 | . 78 52 26 Cannon 47 | . 45 2 . Launcher 5 | . . 5 . Special . | . . . . Kinetic 87 | . 9 52 26 Thermal 116 | . 114 2 . Explosive 5 | . . 5 . Electromagnetic . | . . . . Robot Hit Streak 10 | . 10 9 6 Robot Miss Streak 5 | . 5 3 4 Penetration Max . | . . . . Secondary Targets 1 | . . 1 . Max Gunslinging Chain 1 | . . 1 . Shots Hit Robots 129 | . 78 35 16 Core Hits 48 | . 30 17 1 Critical Kills . | . . . . Critical Parts Destroyed . | . . . . Critical Strikes 1 | . . . 1 Destroy 1 | . . . 1 Melee Attacks . | . . . . Impact . | . . . . Slashing . | . . . . Piercing . | . . . . Sneak Attacks . | . . . . Combat Hostiles . | . . . . Follow-up Attacks . | . . . . Damage Inflicted 1889 | . 1075 623 191 Guns 1222 | . 609 422 191 Cannons 477 | . 441 36 . Explosions 165 | . . 165 . Melee . | . . . . Ramming 25 | . 25 . . Kinetic 676 | . 63 422 191 Thermal 1023 | . 987 36 . Explosive 165 | . . 165 . Electromagnetic . | . . . . Impact . | . . . . Slashing . | . . . . Piercing . | . . . . Highest Corruption . | . . . . Average Corruption . | . . . . Corruption Purged . | . . . . Corruption Blocked . | . . . . Overload Shots . | . . . . Overflow Damage . | . . . . Projectiles . | . . . . Explosions . | . . . . Melee . | . . . . Knockbacks . | . . . . Impact . | . . . . Kinetic . | . . . . Secondary . | . . . . Self-Inflicted Damage 11 | . . 11 . Shots 1 | . . 1 . Rammed . | . . . . Targets Rammed 3 | . 3 . . Kicked 3 | . 3 . . Crushed . | . . . . Highest Temperature 361 | . 361 . . Average Temperature 175 | . 175 . . Received Heat Transfer 393 | . 288 105 . Siege Activations . | . . . . Robots Corrupted . | . . . . Combat Hostiles . | . . . . Parts Fried . | . . . . Impact Corruptions . | . . . . Robots Melted . | . . . . Combat Hostiles . | . . . . Parts Melted 4 | . 4 . . Heat Transferred 2319 | . 2245 74 . Parts Sabotaged . | . . . . Parts Stolen . | . . . . Parts Stripped . | . . . . Power Chain Reactions . | . . . . Alert | -11 -10 -10 -10 ------- Run | Yrd Mat Min Exi Peak Influence 187 | . 187 161 . Initial 39 | . . 39 . Average 70 | . 77 60 . Maximum Alert Level . | . . . . Low Security (%) 100 | 100 100 100 . Level 1 . | . . . . Level 2 . | . . . . Level 3 . | . . . . Level 4 . | . . . . Level 5 . | . . . . High Security . | . . . . Max Security . | . . . . Squads Dispatched 4 | . 3 1 . Investigation . | . . . . Extermination . | . . . . Reinforcement 3 | . 3 . . Assault 1 | . . 1 . Garrison . | . . . . Intercept . | . . . . Searches Triggered . | . . . . Construction Impeded . | . . . . Haulers Reinforced . | . . . . Active Scanning Responses . | . . . . Cargo Convoy Interrupts . | . . . . Stealth | -11 -10 -10 -10 --------- Run | Yrd Mat Min Exi Distress Signals 5 | . 5 . . Communications Jammed . | . . . . Distress Signals . | . . . . Times Spotted 47 | . 27 15 5 Peak Tracking Total 5 | . 4 4 5 Tactical Retreats 2 | . 1 . 1 Traps | -11 -10 -10 -10 ------- Run | Yrd Mat Min Exi Traps Triggered . | . . . . Indirectly . | . . . . Trap Hack Attempts . | . . . . Triggered . | . . . . Disarmed . | . . . . Reprogrammed . | . . . . Reused . | . . . . Traps Extracted . | . . . . Installed . | . . . . Triggered . | . . . . Machines | -11 -10 -10 -10 ---------- Run | Yrd Mat Min Exi Machines Disabled 1 | . . . 1 Max in Single Turn . | . . . . Machines Repaired . | . . . . Machines Dismantled . | . . . . Machines Sabotaged . | . . . . Overloaded Fab Kills . | . . . . Hacking | -11 -10 -10 -10 --------- Run | Yrd Mat Min Exi Machines Accessed 7 | . 5 1 1 Terminals 6 | . 5 1 . Fabricators . | . . . . Repair Stations . | . . . . Recycling Units . | . . . . Scanalyzers . | . . . . Garrison Access . | . . . . Total Hacks 25 | . 18 6 1 Successful 12 | . 8 3 1 Failed 11 | . 9 2 . Catastrophic 1 | . 1 . . Database Lockouts 2 | . 1 1 . Manual 23 | . 15 7 1 Terminals 24 | . 18 6 . Fabricators . | . . . . Repair Stations . | . . . . Recycling Units . | . . . . Scanalyzers . | . . . . Garrison Access . | . . . . Terminal Hacks 6 | . 2 3 1 Robot Analysis 1 | . 1 . . Prototype ID Bank 4 | . 1 3 . Derelict Proto ID Bank 1 | . . . 1 Fabricator Hacks . | . . . . Repair Station Hacks . | . . . . Recycling Unit Hacks . | . . . . Scanalyzer . | . . . . Garrison Access Hacks . | . . . . Unauthorized Hacks 6 | . 6 . . Terminals 6 | . 6 . . Botnet 1 | . 1 . . Skim 5 | . 5 . . Fabricators . | . . . . Repair Stations . | . . . . Recycling Units . | . . . . Scanalyzers . | . . . . Garrison Access . | . . . . Data Cores Recovered . | . . . . Used . | . . . . Hacking Detections 6 | . 4 2 . Full Trace Events . | . . . . Feedback Events . | . . . . Feedback Blocked . | . . . . Robot Schematics Acquired . | . . . . Robots Built . | . . . . Authchips . | . . . . Time . | . . . . Total Robot Build Rating . | . . . . Part Schematics Acquired . | . . . . Parts Built . | . . . . Authchips . | . . . . Time . | . . . . Total Part Build Rating . | . . . . Parts Repaired . | . . . . Time . | . . . . Parts Recycled . | . . . . Recycled Matter . | . . . . Retrieved Matter . | . . . . Retrieved Components . | . . . . Parts Scanalyzed . | . . . . Part Schematics Acquired . | . . . . Parts Damaged . | . . . . Bothacking | -11 -10 -10 -10 ------------ Run | Yrd Mat Min Exi Used RIF Installer . | . . . . Robots Hacked . | . . . . Non-combat . | . . . . Combat . | . . . . Robot Hacks Applied . | . . . . Relay Couplers Released . | . . . . Fabnet Peak Effective % . | . . . . Robots Rewired . | . . . . Allies Hacked . | . . . . Hacks Repelled . | . . . . Allies | -11 -10 -10 -10 -------- Run | Yrd Mat Min Exi Total Allies 1 | . . 1 . Largest Group 1 | . . 1 . Highest-Rated Group 31 | . . 31 . Highest-Rated Ally 31 | . . 31 . Total Orders . | . . . . Ally Attacks 28 | . . 5 23 Total Damage 1145 | . . 104 1041 Kills 5 | . . 1 4 Allies Corrupted . | . . . . Allies Melted . | . . . . Turrets Deployed 3 | . . . 3 Intel | -11 -10 -10 -10 ------- Run | Yrd Mat Min Exi Robot Analysis Total 1 | . 1 . . Derelict Logs Recovered 2 | . . 2 . Drone Launches . | . . . . Drone Recoveries . | . . . . Exploration | -11 -10 -10 -10 ------------- Run | Yrd Mat Min Exi Turns Passed 3641 | 5 1823 1393 420 Spaces Moved 1564 | 5 662 685 212 Core . | . . . . Treads . | . . . . Legs 410 | 5 405 . . Wheels 1154 | . 257 685 212 Hover . | . . . . Flight . | . . . . Fastest Speed 120 | 120 120 175 175 Average Speed 207 | 120 238 187 175 Slowest Speed 400 | 120 400 215 175 Overloaded Moves . | . . . . Propulsion Burnouts . | . . . . Robots Hopped . | . . . . Cave-ins Triggered . | . . . . Exploration Rate (%) 64 | 2 98 98 58 Regions Visited 3 Branch Regions 2 Pre-discovered Areas 1 | . 1 . . Known Exits Taken 1 | . . 1 . Unknown Exits Taken 2 | 1 1 . . Scrap Searched 3 | . . 3 . Spaces Dug . | . . . . Terrain Destroyed 55 | . . 55 . Melee . | . . . . Projectile . | . . . . AOE 55 | . . 55 . Terrain Rammed . | . . . . Walls Destroyed . | . . . . Machines Disabled . | . . . . Actions | -11 -10 -10 -10 --------- Run | Yrd Mat Min Exi Total 1745 | 4 770 734 237 Wait 24 | . 21 2 1 Move 1561 | 4 661 684 212 Hop . | . . . . Pick Up 23 | . 12 6 5 Fast Attach 2 | . 2 . . Attach 8 | . 1 5 2 Detach . | . . . . Swap 9 | . 6 2 1 Drop 6 | . 2 1 3 Fire 109 | . 62 34 13 Melee . | . . . . Ram . | . . . . Kick 3 | . 3 . . Crush . | . . . . Escape Stasis . | . . . . Rewire . | . . . . Trap . | . . . . Miscellaneous . | . . . . Route ------- -11/Scrapyard -10/Materials (discovered 5 exits: [*Mat x3] / *Min / Sub) -10/Mines (discovered 3 exits: [*Mat x2] / *Exi) -10/Exiles History --------- Turn | Location | Event 1 | -11/Scrapyard | Discovered new exit (range 2) 6 | -11/Scrapyard | Entered Materials 39 | -10/Materials | Central database locked down 63 | -10/Materials | Discovered new exit (range 16) 234 | -10/Materials | Discovered new exit (range 8) 307 | -10/Materials | Build established: Mutant 600 | -10/Materials | Discovered new exit (range 6) 1373 | -10/Materials | Discovered new exit (range 7) 1479 | -10/Materials | Learned location of Subcaves (-10) 1630 | -10/Materials | Identified exit to Subcaves 1691 | -10/Materials | Learned 4 Subcaves zone layouts 1801 | -10/Materials | Learned Storage interactive machine intel 1829 | -10/Materials | Entered Mines 1948 | -10/Mines | Central database locked down 2216 | -10/Mines | A weapon hastily lodged in a ceiling crevice suddenly fell to the ground 2234 | -10/Mines | Deemed a non-threat by the Exiles lab entrance 2440 | -10/Mines | Core integrity fell below 50% 2523 | -10/Mines | Discovered new exit (range 16) 2710 | -10/Mines | Discovered new exit (range 4) 2717 | -10/Mines | Received a Rocket Launcher from a helpful Derelict 2924 | -10/Mines | Met a Derelict testing a Signal Generator 2925 | -10/Mines | Identified exit to Exiles 2975 | -10/Mines | Found Signal Generator 3222 | -10/Mines | Entered Exiles 3266 | -10/Exiles | Met 8R-AWN 3294 | -10/Exiles | Met EX-HEX 3341 | -10/Exiles | Met EX-BIN 3368 | -10/Exiles | Aligned with FarCom system 3369 | -10/Exiles | Given EX-Vault access code 3410 | -10/Exiles | Opened EX-Vault 3425 | -10/Exiles | Found Potential Leg 3428 | -10/Exiles | Found Potential Leg 3434 | -10/Exiles | Found Deploy-a-Sentry 3437 | -10/Exiles | Found Deploy-a-Sentry 3440 | -10/Exiles | Found Deploy-a-Sentry 3476 | -10/Exiles | Warned to stay clear of 0b10 Research branches 3486 | -10/Exiles | Exiles lab attacked by MAIN.C 3582 | -10/Exiles | DAS Turret deployed 3585 | -10/Exiles | DAS Turret deployed 3587 | -10/Exiles | DAS Turret deployed 3595 | -10/Exiles | Attacked by the Exiles 3632 | -10/Exiles | Core integrity fell below 20% 3641 | -10/Exiles | Lost 3 allies 3642 | -10/Exiles | Destroyed by 8R-AWN with 8R-AWN's Boregun Last Messages --------------- 03619_ Assault Rifle destroyed. 03619_ HV Slug penetrates Wall. 03624_ Penetrated by HV Slug. 03624_ HV Slug penetrates Wall. 03624_ Penetrated by HV Slug. 03624_ HV Slug penetrates Wall. 03626_ Penetrated by HV Slug. 03626_ HV Slug penetrates Wall. 03626_ Penetrated by HV Slug. 03626_ HV Slug penetrates Wall. 03627_ Wall collapses. 03628_ Penetrated by HV Slug. 03633_ Critical hit (Destroy). 03633_ Com. Wheel destroyed. 03635_ Penetrated by HV Slug. 03640_ 8R-AWN suffers critical hit (Destroy). 03642_ Penetrated by HV Slug. 03642_ Critical hit (Destroy). 03642_ Lgt. Treads destroyed. 03642_ Penetrated by HV Slug. Map ----- +----------------------------------------------------+ | ?????????????????????????????????????""""""?# | | ?????????????????????????????????????"""" ## | | ????????????????????????????????????#""X" | | ????????????????????????????????????#" | | ????????????????????????????????????#" ## | | ????????????????????????????????????#""""""?# | | ????????????????????????????????????##"###??# | | ????????????????????????????????????????????# | | ????????????????????????????????????????????# | | ???????????????????????????????????????????## | | ???????????????????????????????????????????#" | | ???????????????????????????????????????????#" | | ???????????????????????????????????????????#" | | ???????????????????????????????????????????#" | | ??????????????????????????????####?????????#" | | ??????????#"?????????????????? ""?????????#" | | ?????????##" ????????????????"" ""????????## | | ??????? #"" ???????????????"" ?????????# | | ??????? ???????????????"" ?????????#" | | ??????? ???????????????" "#????????#" | | ???????? "????????????? ""?????????#" | | ????????? ##????????????" "?????????##" | | ?????????? #???????????# #????????##"" | | ???????????#"" ######???### %###?######"" | | ????????????#" """#####X# #"###""""""" | | ?????????? ; *% @ g%% """""" " "" | | ??????????????# "" """ " | | ??????????????## " " | | ???????????????### % | | ?????????????????#;; % % | | ?????????????????#### % | | ????????????????????## % [ | | ?????????????????????##" % % ]%* % | | ??????????????????????#"" % """"""% | | ??????????????????????#" z ######""" | | ?????????????????????#"" % ""##????#### | | ?????????????????????#""" """##????????? | | ????????????????????#""" ""##?????????? | | ????????????????????#"""% ""#??????????? | | ????????????????????#"" % zz ##??????????? | | ????????????????????#"" ??????????" | | ????????????????????#" ????????" | | ????????????????????##"" ?????? | | ?????????????????????#" " ????? | | ?????????????????????## ???? | | ??????????????????????# "??? | | ??????????????????????#"" " ""#???## | | ??????????????????????#" ""###????? | | ???????????????????????" """"##??????? | | ???????????????????????""" """#???????? | +----------------------------------------------------+ Best States ------------- Heat Dissipation 47 Energy Generation 14 Energy Capacity 250 Matter Stores 300 Matter Capacity 300 Sight Range 16 Terrain Scan Density 10 Evasion (%) 55 Salvage Targeting 1 Item Schematics ----------------- None Robot Schematics ------------------ None Fabricated ------------ Nothing Alien Tech Used ----------------- None Achievements -------------- None Challenges ------------ None Game ------ Seed SpacefoldPitchforkPick Manual? 0 Play Time 00:12:12 Cumulative 313.3 hours Start 2024.09.21 @ 14:20:53 End 2024.09.21 @ 14:30:59 Sessions 1 Manual Loads 0 Difficulty Rogue Special Mode None Game No. 390 Rogue 390 Adventurer 0 Explorer 0 Win Type - Total 21 Types 10/1/5/1/1/1/0/1/1 Lore% 81 Gallery% 81 Achievement% 74 Wizard Run 0 Options --------- Layout 0 ASCII 0 Keyboard 0 Movement Numpad Keybinds 0 Fullscreen 1 Font 18/SmallcapsGlow Map View 76x50 Zoom Use 0% Tactical HUD 1 Map Filters NONE Filters NONE Steam 1 RUN: 28536805-1280-4a83-81ca-07bf6a1b4ebb